Cogmind - Beta 15 @@@ ROGUE MODE // 2025.05.15 @ 16:12:04 Player: Bardic Entropy Result: Destroyed by PS-6U8(R) with Subdweller Beam Cannon Performance ------------- Evolutions (0) 0 Regions Visited (3) 600 Robots Destroyed (16) 80 Value Destroyed (243) 243 Prototype IDs (0) 0 Alien Tech Used (0) 0 Bonus (0) 0 TOTAL SCORE: 923 Bonus ------- None Cogmind --------- Core Integrity 0/250 Matter 208/300 Energy 98/100 System Corruption 2% Temperature Cool (9) Movement Core (400) Ox7 Location -10/Subcaves Parts ------- > --- POWER (1) -------- (None) > --- PROPULSION (2) --- (None) > --- UTILITY (2) ------ Large Storage Unit Seismic Detector > --- WEAPON (2) ------- Mace > --- INVENTORY (15) --- Medium Storage Unit High-capacity Matter Pod (0) Improved Terrain Scanner Light Armor Plating Light Assault Rifle Peak State ------------ > --- POWER ------------ Light Ion Engine > --- PROPULSION ------- Wheel Compact Wheel > --- UTILITY ---------- Large Storage Unit Seismic Detector > --- WEAPON ----------- Assault Rifle Light Assault Rifle > --- INVENTORY -------- Wheel Medium Storage Unit High-capacity Matter Pod Improved Terrain Scanner Light Armor Plating Grenade Launcher Mace [Rating: 8] Favorites ----------- Power Light Ion Engine Engine Light Ion Engine Propulsion Compact Wheel Wheel Compact Wheel Utility Seismic Detector Device Seismic Detector Storage Large Storage Unit Weapon Assault Rifle Ballistic Gun Assault Rifle Launcher Grenade Launcher Special Weapon Mining Laser Impact Weapon Mace Slashing Weapon Mining Claw Build | -11 -10 -10 -10 ------- Run | Yrd Mat Min Sub Slots Evolved . | . . . . Power . | . . . . Propulsion . | . . . . Utility . | . . . . Weapon . | . . . . Parts Attached 19 | 8 10 . 1 Power 5 | 2 3 . . Engine 5 | 2 3 . . Core . | . . . . Reactor . | . . . . Propulsion 4 | 2 1 . 1 Treads . | . . . . Leg . | . . . . Wheel 4 | 2 1 . 1 Hover . | . . . . Flight . | . . . . Utility 4 | 2 2 . . Device 1 | 1 . . . Storage 3 | 1 2 . . Processor . | . . . . Hackware . | . . . . Protection . | . . . . Artifact . | . . . . Weapon 6 | 2 4 . . Energy Gun . | . . . . Energy Cannon . | . . . . Ballistic Gun 2 | 2 . . . Ballistic Cannon . | . . . . Launcher 1 | . 1 . . Special Weapon 1 | . 1 . . Impact Weapon 1 | . 1 . . Slashing Weapon 1 | . 1 . . Piercing Weapon . | . . . . Special Melee Weapon . | . . . . Unidentified Prototypes . | . . . . Parts Lost 7 | . . 1 6 Power 1 | . . 1 . Propulsion 4 | . . . 4 Utility . | . . . . Weapon 2 | . . . 2 Highest Loss Streak 4 | . . 1 4 To Critical Strikes . | . . . . Average Backups 5 | . 4 7 6 Power . | . . . . Propulsion . | . . 1 1 Utility 3 | . 2 4 4 Weapon 1 | . 1 2 1 Tool/Special . | . . . . Unused Backups 4 | . 1 . 3 Power . | . . . . Propulsion . | . . . . Utility 4 | . 1 . 3 Weapon . | . . . . Tool/Special . | . . . . Average Slot Usage (%) 91 | . 97 87 78 Engine 8 | . 14 2 . Wheel 27 | . 28 28 25 Device 14 | . 14 14 14 Storage 14 | . 14 14 14 Ballistic Gun 17 | . 21 14 12 Launcher 5 | . . 14 5 Special Weapon 1 | . 2 . . Impact Weapon 1 | . . . 6 Peak Build Rating 8 | 7 8 8 7 Average Rating 6 | 5 6 7 6 On Entrance 5 | . 7 8 7 Naked Turns . | . . . . Heaviest Build 29 | 13 29 29 26 Greatest Support 32 | 26 26 26 32 Greatest Overweight (x) 7 | . 1 1 7 Average Overweight (x) . | . . . . Largest Inventory Capacity 15 | 8 15 15 15 Average Capacity 12 | 7 10 15 15 Most Carried 8 | 1 7 8 8 Average Carried 5 | . 4 7 6 Final Capacity 15 | 8 15 15 15 Final Carried 8 | 1 7 8 5 Class Distribution -------------------- 100% | Mutant Dominant Class ---------------- Mutant | -10/Materials Mutant | -10/Mines Mutant | -10/Subcaves Resources | -11 -10 -10 -10 ----------- Run | Yrd Mat Min Sub Matter Collected 507 | 225 115 123 44 Remotely . | . . . . Salvage Created 192 | 26 112 54 . Parts 24 | 5 17 2 . Haulers Intercepted . | . . . . Recyclers Shooed . | . . . . Parts Field Recycled . | . . . . Retrieved Matter . | . . . . Parts Self-Destructed . | . . . . Prevented . | . . . . Kills | -11 -10 -10 -10 ------- Run | Yrd Mat Min Sub Combat Hostiles Destroyed 11 | . 6 5 . Guns 3 | . 3 . . AOE 8 | . 3 5 . Classes Destroyed 4 | 1 2 1 . Tunneler 2 | 1 1 . . Operator 3 | . 3 . . Swarmer 9 | . 6 3 . Grunt 2 | . . 2 . Best Kill Streak 4 | 1 4 3 . Combat Bots Only 3 | . 3 3 . Max Kills in Single Turn 2 | 1 2 2 . Gunslinging . | . . . . Exploded 2 | . 2 2 . Melee . | . . . . Uniques/NPCs Destroyed . | . . . . Combat | -11 -10 -10 -10 -------- Run | Yrd Mat Min Sub Hostile Shots Fired 62 | . 22 18 22 Missed 14 | . 5 4 5 Hits 48 | . 17 14 17 Projectile 48 | . 17 14 17 Critical Strikes 1 | . . . 1 Damage Taken 764 | . 189 202 373 Core 256 | . 51 36 169 Absorbed by Shields . | . . . . Core Remaining (%) 100 | 100 . . . Volleys Fired 31 | 3 20 8 . Largest 2 | 2 2 2 . Hottest 100 | 40 100 50 . Shots Fired 55 | 6 36 13 . Gun 43 | 6 31 6 . Cannon . | . . . . Launcher 9 | . 2 7 . Special 3 | . 3 . . Kinetic 43 | 6 31 6 . Thermal 3 | . 3 . . Explosive 9 | . 2 7 . Electromagnetic . | . . . . Robot Hit Streak 8 | 5 8 3 . Robot Miss Streak 3 | 1 3 1 . Penetration Max . | . . . . Secondary Targets 1 | . 1 . . Max Gunslinging Chain 1 | . 1 . . Shots Hit Robots 31 | 5 20 6 . Core Hits 20 | 2 11 7 . Critical Kills 1 | . 1 . . Critical Parts Destroyed . | . . . . Critical Strikes 1 | . 1 . . Destroy 1 | . 1 . . Melee Attacks 10 | . 6 . 4 Impact 7 | . 3 . 4 Slashing 3 | . 3 . . Piercing . | . . . . Sneak Attacks . | . . . . Combat Hostiles . | . . . . Follow-up Attacks . | . . . . Damage Inflicted 980 | 53 416 511 . Guns 249 | 53 196 . . Cannons . | . . . . Explosions 687 | . 176 511 . Melee 44 | . 44 . . Ramming . | . . . . Kinetic 249 | 53 196 . . Thermal . | . . . . Explosive 687 | . 176 511 . Electromagnetic . | . . . . Impact 44 | . 44 . . Slashing . | . . . . Piercing . | . . . . Highest Corruption 2 | . 2 2 2 Average Corruption 2 | . 2 2 2 Corruption Purged . | . . . . Corruption Blocked . | . . . . Effects 15 | . 7 6 2 Message Errors 7 | . 4 3 . Matter Fused 2 | . . 1 1 Heat Flow Errors 2 | . 1 . 1 Energy Discharges 1 | . 1 . . Data Loss (minor) 1 | . . 1 . Misfires 1 | . 1 . . Alerts 1 | . . 1 . Overload Shots . | . . . . Overflow Damage 34 | . 34 . . Projectiles . | . . . . Explosions . | . . . . Melee 34 | . 34 . . Knockbacks . | . . . . Impact . | . . . . Kinetic . | . . . . Secondary . | . . . . Self-Inflicted Damage 37 | . . 37 . Shots 2 | . . 2 . Rammed 1 | . . 1 . Targets Rammed 1 | . . 1 . Kicked . | . . . . Crushed . | . . . . Highest Temperature 212 | . 212 16 61 Average Temperature 40 | . 60 9 38 Received Heat Transfer 183 | . . 60 123 Siege Activations . | . . . . Martial Activations . | . . . . Shielding Activations . | . . . . Robots Disrupted . | . . . . Combat Hostiles . | . . . . Robots Corrupted 1 | . 1 . . Combat Hostiles . | . . . . Parts Fried 1 | . 1 . . Impact Corruptions 2 | . 2 . . Robots Melted . | . . . . Combat Hostiles . | . . . . Parts Melted . | . . . . Heat Transferred . | . . . . Parts Sabotaged . | . . . . Parts Stolen . | . . . . Parts Stripped . | . . . . Power Chain Reactions . | . . . . Alert | -11 -10 -10 -10 ------- Run | Yrd Mat Min Sub Maximum Alert Level . | . . . . Low Security (%) 100 | 100 100 100 . Level 1 . | . . . . Level 2 . | . . . . Level 3 . | . . . . Level 4 . | . . . . Level 5 . | . . . . High Security . | . . . . Max Security . | . . . . Peak Influence 122 | 5 122 90 . Initial 1 | . . 1 . Average 27 | . 30 25 . Influence Increases 395 | 5 227 148 15 Destroy 0b10 Robot/C 220 | . 120 100 . Destroy 0b10 Robot/NC 25 | 5 20 . . Destroy Leader 50 | . 30 20 . Successful Hack 19 | . 10 9 . Disable Machine 15 | . . 15 . Destroy Structure 21 | . 17 4 . Lose Combat Pursuer 45 | . 30 . 15 Influence Decreases 395 | 5 223 152 15 Entered New Map 3 | . . 3 . Time Decay 382 | 5 223 139 15 Lost Part 10 | . . 10 . Squads Dispatched 2 | . 1 1 . Investigation 1 | . . 1 . Extermination . | . . . . Reinforcement 1 | . 1 . . Assault . | . . . . Garrison . | . . . . Intercept . | . . . . Searches Triggered . | . . . . Construction Impeded . | . . . . Haulers Reinforced . | . . . . Active Scanning Responses . | . . . . Cargo Convoy Interrupts . | . . . . Stealth | -11 -10 -10 -10 --------- Run | Yrd Mat Min Sub Distress Signals . | . . . . Communications Jammed . | . . . . Distress Signals . | . . . . Times Spotted 27 | . 17 5 5 Peak Tracking Total 3 | . 3 3 3 Tactical Retreats 2 | . 1 . 1 Traps | -11 -10 -10 -10 ------- Run | Yrd Mat Min Sub Traps Triggered 2 | . 1 . 1 Indirectly . | . . . . Trap Hack Attempts . | . . . . Triggered . | . . . . Disarmed . | . . . . Reprogrammed . | . . . . Reused . | . . . . Traps Extracted . | . . . . Installed . | . . . . Triggered . | . . . . Machines | -11 -10 -10 -10 ---------- Run | Yrd Mat Min Sub Machines Disabled 1 | . . 1 . Max in Single Turn 1 | . . 1 . Machines Repaired . | . . . . Machines Dismantled . | . . . . Machines Sabotaged . | . . . . Overloaded Fab Kills . | . . . . Hacking | -11 -10 -10 -10 --------- Run | Yrd Mat Min Sub Machines Accessed 8 | . 7 1 . Terminals 7 | . 6 1 . Fabricators . | . . . . Repair Stations . | . . . . Recycling Units 1 | . 1 . . Scanalyzers . | . . . . Garrison Access . | . . . . Total Hacks 20 | . 17 3 . Successful 10 | . 8 2 . Failed 9 | . 8 1 . Catastrophic . | . . . . Database Lockouts 1 | . 1 . . Manual 15 | . 14 1 . Terminals 19 | . 16 3 . Fabricators . | . . . . Repair Stations . | . . . . Recycling Units 1 | . 1 . . Scanalyzers . | . . . . Garrison Access . | . . . . Terminal Hacks 4 | . 3 1 . Robot Analysis 2 | . 2 . . Dispatch Records 2 | . 1 1 . Fabricator Hacks . | . . . . Repair Station Hacks . | . . . . Recycling Unit Hacks 1 | . 1 . . Report Inventory 1 | . 1 . . Scanalyzer . | . . . . Garrison Access Hacks . | . . . . Unauthorized Hacks 5 | . 4 1 . Terminals 5 | . 4 1 . Botnet 5 | . 4 1 . Fabricators . | . . . . Repair Stations . | . . . . Recycling Units . | . . . . Scanalyzers . | . . . . Garrison Access . | . . . . Data Cores Recovered 1 | . 1 . . Used 1 | . 1 . . Hacking Detections 6 | . 5 1 . Full Trace Events 1 | . . 1 . Feedback Events . | . . . . Feedback Blocked . | . . . . Robot Schematics Acquired . | . . . . Robots Built . | . . . . Authchips . | . . . . Time . | . . . . Total Robot Build Rating . | . . . . Part Schematics Acquired . | . . . . Parts Built . | . . . . Authchips . | . . . . Time . | . . . . Total Part Build Rating . | . . . . Parts Repaired . | . . . . Time . | . . . . Parts Recycled . | . . . . Recycled Matter . | . . . . Retrieved Matter . | . . . . Retrieved Components . | . . . . Parts Scanalyzed . | . . . . Part Schematics Acquired . | . . . . Parts Damaged . | . . . . Bothacking | -11 -10 -10 -10 ------------ Run | Yrd Mat Min Sub Used RIF Installer . | . . . . Robots Hacked . | . . . . Non-combat . | . . . . Combat . | . . . . Robot Hacks Applied . | . . . . Relay Couplers Released . | . . . . Fabnet Peak Effective % . | . . . . Robots Rewired . | . . . . Allies Hacked . | . . . . Hacks Repelled . | . . . . Allies | -11 -10 -10 -10 -------- Run | Yrd Mat Min Sub Total Allies . | . . . . Largest Group . | . . . . Highest-Rated Group . | . . . . Highest-Rated Ally . | . . . . Total Orders . | . . . . Ally Attacks . | . . . . Total Damage . | . . . . Kills . | . . . . Allies Corrupted . | . . . . Allies Melted . | . . . . Intel | -11 -10 -10 -10 ------- Run | Yrd Mat Min Sub Active Infowar (turns) 1564 | 35 814 480 235 Seismic 1564 | 35 814 480 235 Robot Analysis Total 2 | . 2 . . Derelict Logs Recovered 1 | . . 1 . Drone Launches . | . . . . Drone Recoveries . | . . . . Exploration | -11 -10 -10 -10 ------------- Run | Yrd Mat Min Sub Turns Passed 1606 | 77 814 480 235 Spaces Moved 1419 | 64 682 460 213 Core 8 | 4 . . 4 Treads . | . . . . Legs . | . . . . Wheels 1411 | 60 682 460 209 Hover . | . . . . Flight . | . . . . Fastest Speed 50 | 50 90 90 90 Average Speed 93 | 86 93 91 101 Slowest Speed 400 | 90 105 105 400 Overloaded Moves . | . . . . Propulsion Burnouts . | . . . . Robots Hopped . | . . . . Potential Cave-ins . | . . . . Cave-ins Triggered . | . . . . Exploration Rate (%) 45 | 4 86 71 22 Regions Visited 3 Branch Regions 2 Pre-discovered Areas . | . . . . Known Exits Taken . | . . . . Unknown Exits Taken 3 | 1 1 1 . Scrap Searched 1 | . . 1 . Spaces Dug 3 | . 3 . . Terrain Destroyed 27 | . 23 4 . Melee 1 | . 1 . . Projectile 2 | . 2 . . AOE 24 | . 20 4 . Terrain Rammed . | . . . . Walls Destroyed . | . . . . Machines Disabled . | . . . . Actions | -11 -10 -10 -10 --------- Run | Yrd Mat Min Sub Total 1613 | 76 808 504 225 Wait 113 | . 74 34 5 Move 1416 | 63 681 459 213 Hop . | . . . . Pick Up 9 | 1 7 1 . Fast Attach 8 | 8 . . . Attach 4 | . 1 . 3 Detach 1 | . 1 . . Swap 12 | . 11 1 . Drop 8 | 1 7 . . Fire 31 | 3 20 8 . Melee 10 | . 6 . 4 Ram 1 | . . 1 . Kick . | . . . . Crush . | . . . . Escape Stasis . | . . . . Rewire . | . . . . Trap . | . . . . Miscellaneous . | . . . . Route ------- -11/Scrapyard -10/Materials (discovered 5 exits: [*Mat x3] / *Min x2) -10/Mines (discovered 3 exits: [*Mat x2] / [*Sub]) -10/Subcaves (discovered 1 exit: Rec) History --------- Turn | Location | Event 14 | -11/Scrapyard | Discovered new exit (range 16) 78 | -11/Scrapyard | Entered Materials 128 | -10/Materials | Discovered new exit (range 5) 318 | -10/Materials | Build established: Mutant 392 | -10/Materials | Discovered new exit (range 6) 488 | -10/Materials | Discovered new exit (range 11) 669 | -10/Materials | Discovered new exit (range 3) 820 | -10/Materials | Central database locked down 851 | -10/Materials | Discovered new exit (range 5) 892 | -10/Materials | Entered Mines 1018 | -10/Mines | Discovered new exit (range 10) 1097 | -10/Mines | Discovered new exit (range 5) 1366 | -10/Mines | Discovered new exit (range 6) 1372 | -10/Mines | Entered Subcaves 1373 | -10/Subcaves | Identified exit to Recycling 1434 | -10/Subcaves | Disturbed a concealed Subdweller 1474 | -10/Subcaves | Core integrity fell below 50% 1483 | -10/Subcaves | A swath of the cavern ceiling suddenly collapsed 1598 | -10/Subcaves | Core integrity fell below 20% 1607 | -10/Subcaves | Destroyed by PS-6U8(R) with Subdweller Beam Cannon Last Messages --------------- LOCATION=UNKNOWN AMBIENT_HEAT=-10 GOAL=ESCAPE Loading 1 Recycling entrance... 01381_ Acquired 14 matter. 01385_ Acquired 7 matter. 01398_ Acquired 8 matter. 01423_ System corrupted: Heat flow error (+106). 01434_ 8B-1CL(R) angrily emerges from the Twisted Machinery. 01457_ Acquired 15 matter. 01458_ Triggered Piercing Trap. 01458_ Spikes shoot up from the floor. 01467_ Grenade Launcher destroyed. 01470_ Wheel destroyed. 01470_ Critical hit (Burn: +37). A swath of the cavern ceiling suddenly collapses. 01495_ System corrupted: Matter fused (-8). 01575_ Assault Rifle destroyed. 01584_ Com. Wheel destroyed. 01603_ Wheel destroyed. Map ----- +----------------------------------------------------+ | ?????????????????????????????????????????????????? | | ?????????????????????????????????????????????????? | | ?????????????????????????????????????????????????? | | ?????????????????????????????????????????????????? | | ?????????????????????????????????????????????????? | | ??????????????????????????????????? ????????????? | | ??????????????????????????????????? ????????????? | | ??????????????????????????????????? ????????????? | | ?????????????????????????????????"" ????????????? | | ????????????????????????????????? " ????????????? | | ?????????????????????????????????""" ?????###????? | | ??????????????????????????????????# ##???# ###??? | | ??????????????????????????????????# ###?# ##?? | | ?????????????????????????????????## ### #?? | | ?????????????????????????????????# #?# | | ?????????????????????????????????""" ### | | ????????????????????????????????????# | | ????????????????????????????####???## " ### | | ???????????????????????????##""##??# """ #### | | ?????????????????????#?????#""" #?## " ### | | ????????????????????## ????#""" ### ## ### | | ??????????????????### #???##" ### ## ## | | ?????????????????## ????## " ##?##### ## | | ????????????????## ???## " ##??????### ## | | ????????????????# #### " ""##?????????# ## | | ?????????? @ R "#"#""?????????# # | | ?????????? R """ ?????????# # | | ?????????? R """????????## # | | ??????????? ## # ###????????#### | | ??????????? ?????# #####"#???????????## | | ?????????????????# ## ##????" #?????????## | | ????????????????# ?###?????? #?????????# | | ????????????????# ?????????????????????# | | ??????????????? #?????????????????????# | | ??????????????# ### ??????????????????????# ## | | ??????????????## ??# ??????????????????????##?# | | ???????????????# ???# ?????????????????????????? | | ???????????????? ????# ?????????????????????????? | | ????????????????????? ?????????????????????????? | | ????????????????????? ??????????????????????????? | | ?????????????????????????????????????????????????? | | ?????????????????????????????????????????????????? | | ?????????????????????????????????????????????????? | | ?????????????????????????????????????????????????? | | ?????????????????????????????????????????????????? | | ?????????????????????????????????????????????????? | | ?????????????????????????????????????????????????? | | ?????????????????????????????????????????????????? | | ?????????????????????????????????????????????????? | | ?????????????????????????????????????????????????? | +----------------------------------------------------+ Best States ------------- Heat Dissipation 25 Energy Generation 10 Energy Capacity 250 Matter Stores 244 Matter Capacity 300 Sight Range 16 Terrain Scan Density 10 Evasion (%) 44 Item Schematics ----------------- None Robot Schematics ------------------ None Fabricated ------------ Nothing Repaired ---------- Nothing Alien Tech Used ----------------- None Achievements -------------- None Challenges ------------ None Game ------ Seed MiniShieldDerivative Manual? 0 Play Time 00:25:43 Cumulative 49.0 hours Start 2025.05.15 @ 15:44:42 End 2025.05.15 @ 16:12:04 Sessions 1 Manual Loads 0 Difficulty Rogue Special Mode None Game No. 54 Rogue 54 Adventurer 0 Explorer 0 Win Type - Total 0 Types 0/0/0/0/0/0/0/0/0/0 Lore% 14 Gallery% 21 Achievement% 21 Wizard Run 0 Options --------- Layout 0 ASCII 0 Keyboard 0 Movement Mouse Keybinds 0 Fullscreen 1 Font 16/TerminusTall Map View 75x55 Zoom Use 0% Tactical HUD 1 Map Filters NONE Filters NONE Steam 1 RUN: ea3add75-f996-4c10-aa10-974a57998b89